bitfinex/quotes_BTCUSD_20250620
["timestamp","ask_amount","ask_price","bid_price","bid_amount"]
[1750439569728,0.37859688,103630.0,103620.0,0.38900356]
[1750439570167,0.36894736,103630.0,103620.0,0.38900356]
[1750439570832,0.35929802,103630.0,103620.0,0.39017356]
[1750439571046,0.35929802,103630.0,103620.0,0.42337356]
[1750439571260,0.36894708,103630.0,103620.0,0.42337356]
[1750439571481,0.37859642,103630.0,103620.0,0.42220356]
[1750439571752,0.37859642,103630.0,103620.0,0.38900356]
[1750439572202,0.38824585,103630.0,103620.0,0.38900356]
[1750439572394,0.36894708,103630.0,103620.0,0.38900356]
[1750439572612,0.37859642,103630.0,103620.0,0.38900356]
[1750439572809,0.36894708,103630.0,103620.0,0.38900356]
[1750439573956,0.34964887,103630.0,103620.0,0.38900356]
[1750439574182,0.34964897,103630.0,103620.0,0.39017356]
[1750439574415,0.35929812,103630.0,103620.0,0.42257356]
[1750439574645,0.37859717,103630.0,103620.0,0.38900356]
[1750439575087,0.37859707,103630.0,103620.0,0.38900356]
[1750439575307,0.35929812,103630.0,103620.0,0.38900356]
[1750439575522,0.36894746,103630.0,103620.0,0.38900356]
[1750439575750,0.35929812,103630.0,103620.0,0.38900356]
[1750439576198,0.35929812,103630.0,103620.0,0.45327356]
[1750439576421,0.34964887,103630.0,103620.0,0.45327356]
[1750439576649,0.34,103630.0,103620.0,0.45327356]
[1750439577329,0.338,103630.0,103620.0,0.45327356]
[1750439577554,0.34764887,103630.0,103620.0,0.45327356]
[1750439578226,0.35729784,103630.0,103620.0,0.45327356]
[1750439578464,0.34764887,103630.0,103620.0,0.45327356]
[1750439578907,0.36694727,103630.0,103620.0,0.42313356]
[1750439579121,0.36694727,103630.0,103620.0,0.38892356]
[1750439579381,0.36808727,103630.0,103620.0,0.38892356]
[1750439579595,0.36694727,103630.0,103620.0,0.38892356]
[1750439580440,0.35729793,103630.0,103620.0,0.39009356]
[1750439580869,0.36694717,103630.0,103620.0,0.38892356]
[1750439581083,0.35729793,103630.0,103620.0,0.38892356]
[1750439581299,0.36694708,103630.0,103620.0,0.38892356]
[1750439581721,0.36694708,103630.0,103620.0,0.42062356]
[1750439581971,0.36694708,103630.0,103620.0,0.42179356]
[1750439582189,0.36694708,103630.0,103620.0,0.38892356]
[1750439583465,0.35729793,103630.0,103620.0,0.38892356]
[1750439583685,0.35729793,103630.0,103620.0,0.39009356]
[1750439584109,0.35729793,103630.0,103620.0,0.42009356]
[1750439584998,0.34764887,103630.0,103620.0,0.42009356]
[1750439585211,0.338,103630.0,103620.0,0.45319356]
[1750439585661,0.34764887,103630.0,103620.0,0.45319356]
[1750439585962,0.35729793,103630.0,103620.0,0.42009356]
[1750439586173,0.35729793,103630.0,103620.0,0.41892356]
[1750439587269,0.36694708,103630.0,103620.0,0.38892356]
[1750439587705,0.35729793,103630.0,103620.0,0.38892356]
[1750439587917,0.35729793,103630.0,103620.0,0.39009356]
[1750439588144,0.40038699,103630.0,103620.0,0.38892356]
[1750439588362,0.09458699,103630.0,103620.0,0.38892356]
[1750439588585,0.10423633,103630.0,103620.0,0.38892356]
[1750439589014,0.09458699,103630.0,103620.0,0.22700356]
[1750439589229,0.06238699,103630.0,103620.0,0.38888356]
[1750439589657,0.05273784,103630.0,103620.0,0.38888356]
[1750439589892,0.50114,103630.0,103620.0,0.38888356]
[1750439590101,5.55,103630.0,103620.0,0.38888356]
[1750439590314,0.00964887,103630.0,103620.0,0.38888356]
[1750439590747,0.29670034,103640.0,103630.0,0.22194259]
[1750439590956,5.14407484,103640.0,103630.0,0.23159165]
[1750439591167,5.15372343,103640.0,103630.0,0.23159165]
[1750439591379,5.4163478,103640.0,103630.0,0.23159165]
[1750439591592,5.41634855,103640.0,103630.0,0.23159165]
[1750439591804,5.41634855,103640.0,103630.0,0.22194259]
[1750439592508,5.21372409,103640.0,103630.0,0.23159165]
[1750439592734,5.31737373,103630.0,103620.0,0.00304]
[1750439592963,5.96654228,103630.0,103620.0,0.22500412]
[1750439593175,5.92418228,103630.0,103620.0,0.22500421]
[1750439593392,5.92418228,103630.0,103620.0,0.21535394]
[1750439593646,6.00015308,103630.0,103620.0,4e-05]
[1750439594754,6.00015308,103630.0,103610.0,4e-05]
[1750439594755,0.20266339,103620.0,103610.0,4e-05]
[1750439594978,5.77653843,103620.0,103610.0,4e-05]
[1750439595844,5.77653843,103620.0,103610.0,0.00204]
[1750439596071,5.87180828,103620.0,103610.0,0.00204]
[1750439596293,5.87180828,103620.0,103610.0,4e-05]
[1750439596947,0.60701295,103610.0,103600.0,0.00041049]
[1750439597160,5.95653188,103610.0,103600.0,0.00041049]
[1750439597407,6.05180173,103610.0,103600.0,0.00041049]
[1750439599425,6.05380173,103610.0,103600.0,0.00041049]
[1750439603659,6.05380173,103610.0,103600.0,0.00341049]
[1750439604096,6.07656634,103610.0,103600.0,0.00341049]
[1750439605448,5.65713251,103600.0,103590.0,0.0001]
[1750439605665,5.82378558,103600.0,103590.0,0.0001]
[1750439606173,5.98566558,103600.0,103590.0,0.0001]
[1750439606617,5.98666558,103600.0,103590.0,0.0001]
[1750439606842,5.98666558,103600.0,103590.0,0.0011]
[1750439607818,6.0150629,103600.0,103590.0,0.0011]
[1750439608740,6.15869375,103600.0,103590.0,0.0011]
[1750439609691,5.99681375,103600.0,103590.0,0.0011]
[1750439609929,6.20105375,103600.0,103590.0,0.0011]
[1750439610399,6.11595434,103600.0,103590.0,0.0011]
[1750439610642,6.07603211,103600.0,103590.0,0.0011]
[1750439610914,6.13953211,103600.0,103590.0,0.0011]
[1750439611399,6.12987979,103600.0,103590.0,0.0011]
[1750439611629,6.13953211,103600.0,103590.0,0.0011]
[1750439611857,6.23480196,103600.0,103590.0,0.0011]
[1750439612560,6.10883211,103600.0,103590.0,0.20382226]
[1750439612786,6.10883211,103600.0,103590.0,0.0011]
[1750439613032,5.90459211,103600.0,103590.0,0.20382226]
[1750439613270,6.10883211,103600.0,103590.0,0.20382226]
[1750439613494,6.10883211,103600.0,103590.0,0.2134756]
[1750439613720,6.13147979,103600.0,103590.0,0.0011]
[1750439614356,6.20496907,103600.0,103590.0,0.0011]
[1750439618015,6.23397207,103600.0,103590.0,0.0011]
[1750439618222,6.23389207,103600.0,103590.0,0.0011]
[1750439618857,6.23389207,103600.0,103590.0,0.19416882]
[1750439619076,5.99743207,103600.0,103590.0,0.19416882]
[1750439619291,6.20159207,103600.0,103590.0,0.0011]
[1750439619500,5.99743207,103600.0,103590.0,0.19416882]
[1750439619711,6.20159207,103600.0,103590.0,0.0011]
[1750439619924,5.99743207,103600.0,103590.0,0.0011]
[1750439620141,6.20159207,103600.0,103590.0,0.0011]
[1750439620592,6.12810279,103600.0,103590.0,0.0011]
[1750439620803,5.88036029,103600.0,103590.0,0.19416882]
[1750439621016,6.09417261,103600.0,103590.0,0.21347522]
[1750439621240,0.20203117,103600.0,103590.0,0.288958]
[1750439621475,0.001,103600.0,103590.0,0.63686272]
[1750439621704,0.001,103600.0,103590.0,1.09850133]
[1750439621943,0.001,103600.0,103590.0,1.14082133]
[1750439622586,0.001,103600.0,103590.0,1.13982133]
[1750439622808,0.001,103600.0,103590.0,1.14482133]
[1750439623306,5.46625932,103640.0,103630.0,0.22194259]
[1750439623525,5.73968902,103640.0,103630.0,0.22194259]
[1750439623750,5.5370642,103640.0,103630.0,0.23272165]
[1750439623984,5.5370642,103640.0,103630.0,0.29512165]
[1750439623985,0.11179416,103640.0,103630.0,0.29512165]
[1750439624198,0.06,103640.0,103630.0,0.29512165]
[1750439624427,0.06964813,103640.0,103630.0,0.29512165]
[1750439624648,0.06,103640.0,103630.0,0.29512165]
[1750439624863,0.06964813,103640.0,103630.0,0.29512165]
[1750439625083,0.41164813,103640.0,103630.0,0.29512165]
[1750439625294,0.402,103640.0,103630.0,0.29512165]
[1750439625504,0.42129616,103640.0,103630.0,0.29512165]
[1750439625715,0.41164794,103640.0,103630.0,0.29512165]
[1750439626147,0.405,103640.0,103630.0,0.29512165]
[1750439626372,0.42429616,103640.0,103630.0,0.29512165]
[1750439626596,0.065,103640.0,103630.0,0.29512165]
[1750439626824,0.07464794,103640.0,103630.0,0.29512165]
[1750439627258,0.08429607,103640.0,103630.0,0.29512165]
[1750439627683,0.07464794,103640.0,103630.0,0.29512165]
[1750439627907,0.08429607,103640.0,103630.0,0.29399165]
[1750439628160,5.13429607,103640.0,103630.0,0.23159184]
[1750439628408,5.14394448,103640.0,103630.0,0.23159184]
[1750439628856,5.13429607,103640.0,103630.0,0.23159184]
[1750439629095,5.14394438,103640.0,103630.0,0.23272184]
[1750439630158,5.15359288,103640.0,103630.0,0.23272184]
[1750439631697,5.14394438,103640.0,103630.0,0.23272184]
[1750439631928,0.09394438,103640.0,103630.0,0.23272184]
[1750439632386,0.10359288,103640.0,103630.0,0.23272184]
[1750439632826,5.22690151,103640.0,103630.0,0.23159184]
[1750439633057,5.15359288,103640.0,103630.0,0.23159184]
[1750439633790,5.15359288,103640.0,103620.0,0.2660466]
[1750439633791,0.55229288,103630.0,103620.0,0.2660466]
[1750439634029,5.42972726,103630.0,103620.0,0.21229687]
[1750439634260,5.42859726,103630.0,103620.0,0.22194686]
[1750439634712,5.41894764,103630.0,103620.0,0.22194686]
[1750439634967,5.42859716,103630.0,103620.0,0.22194686]
[1750439635988,5.63124108,103630.0,103620.0,0.22194686]
[1750439636292,5.63124108,103630.0,103610.0,0.22195147]
[1750439636293,0.0096499,103620.0,103610.0,0.22195147]
[1750439636563,0.01930036,103620.0,103610.0,0.38367147]
[1750439636780,0.02895054,103620.0,103610.0,0.37402074]
[1750439636990,0.58126382,103620.0,103610.0,0.39332323]
[1750439637210,0.58126382,103620.0,103610.0,0.23160323]
[1750439637435,0.58226466,103620.0,103610.0,0.2123013]
[1750439637659,0.58339466,103620.0,103610.0,0.22195231]
[1750439637874,0.58339466,103620.0,103610.0,0.22295231]
[1750439638337,0.66901461,103620.0,103610.0,0.22295231]
[1750439638543,0.46635104,103620.0,103610.0,0.23260323]
[1750439638748,0.56409412,103620.0,103610.0,0.20365019]
[1750439638978,0.56409412,103620.0,103610.0,0.21330139]
[1750439639189,0.56409412,103620.0,103610.0,0.20365019]
[1750439639370,0.56409412,103620.0,103610.0,0.22295268]
[1750439639635,0.56409412,103620.0,103610.0,0.21330148]
[1750439639849,0.65936397,103620.0,103610.0,0.21330148]
[1750439640513,0.55444394,103620.0,103610.0,0.20365019]
[1750439641601,0.54479348,103620.0,103610.0,0.19403156]
[1750439641823,0.54479348,103620.0,103610.0,0.20368313]
[1750439642455,0.54479348,103620.0,103610.0,0.21333442]
[1750439642669,0.54479348,103620.0,103610.0,0.20368313]
[1750439642882,0.64006333,103620.0,103610.0,0.20368313]
[1750439643303,0.57447348,103620.0,103610.0,0.20368313]
[1750439643985,0.57447348,103620.0,103610.0,0.21333461]
[1750439644420,0.57447348,103620.0,103610.0,0.2229859]
[1750439645103,0.57447348,103620.0,103610.0,0.2326371]
[1750439645317,0.54407348,103620.0,103610.0,0.2326371]
[1750439645563,5.75454333,103620.0,103610.0,0.21333461]
[1750439645774,5.65927348,103620.0,103610.0,0.21333461]
[1750439645985,5.65927348,103620.0,103610.0,0.001]
[1750439646198,5.64962293,103620.0,103610.0,0.001]
[1750439649421,5.64962293,103620.0,103610.0,0.19403156]
[1750439649619,5.64962293,103620.0,103610.0,0.20368313]
[1750439649739,5.64962293,103620.0,103610.0,0.21333461]
[1750439649964,5.64962293,103620.0,103610.0,0.001]
[1750439650165,5.81126293,103620.0,103610.0,0.19403156]
[1750439650341,5.81126293,103620.0,103610.0,0.20368313]
[1750439650575,5.90653278,103620.0,103610.0,0.20368313]
[1750439652075,5.60259357,103620.0,103610.0,0.23263664]
[1750439652284,5.61224412,103620.0,103610.0,0.23263664]
[1750439652489,5.61224412,103620.0,103610.0,0.21333452]
[1750439652694,5.59414348,103620.0,103610.0,0.20368313]
[1750439652902,5.61709293,103620.0,103610.0,0.19403156]
[1750439653104,5.71236278,103620.0,103610.0,0.19403156]
[1750439653307,5.71236278,103620.0,103610.0,0.20368313]
[1750439653516,5.71236278,103620.0,103610.0,0.001]
[1750439653725,5.71236278,103620.0,103610.0,0.19403156]
[1750439653942,5.74256278,103620.0,103610.0,0.19403156]
[1750439654151,5.74256278,103620.0,103610.0,0.01065157]
[1750439654351,5.74256278,103620.0,103610.0,0.20368313]
[1750439654560,5.90420278,103620.0,103610.0,0.001]
[1750439654771,5.90420278,103620.0,103610.0,0.20368313]
[1750439654990,5.91385342,103620.0,103610.0,0.21333442]
[1750439656021,6.00913235,103620.0,103610.0,0.001]
[1750439656234,6.03199529,103620.0,103610.0,0.001]
[1750439665039,6.0605046,103620.0,103610.0,0.001]
[1750439665708,5.8988646,103620.0,103610.0,0.001]
[1750439665927,6.15855797,103620.0,103610.0,0.001]
[1750439666702,6.12054555,103620.0,103610.0,0.001]
[1750439667142,6.15855797,103620.0,103610.0,0.001]
[1750439667563,5.66465455,103600.0,103590.0,0.0001]
[1750439667781,6.01676333,103600.0,103590.0,0.0001]
[1750439668003,6.04084876,103600.0,103590.0,0.0001]
[1750439668221,6.08308876,103600.0,103590.0,0.0001]
[1750439668904,6.08308876,103600.0,103590.0,0.0011]
[1750439670414,5.87069607,103600.0,103590.0,0.0011]
[1750439670663,6.08305062,103600.0,103590.0,0.0011]
[1750439671170,6.08305062,103600.0,103590.0,0.0001]
[1750439671387,6.08205062,103600.0,103590.0,0.0001]
[1750439671611,6.08605062,103600.0,103590.0,0.0001]
[1750439671822,6.08602948,103600.0,103590.0,0.0001]
[1750439672506,5.99620737,103600.0,103590.0,0.0001]
[1750439672740,5.42127389,103600.0,103590.0,0.287258]
[1750439672959,0.89161565,103600.0,103590.0,0.36350294]
[1750439673174,0.40126768,103600.0,103590.0,0.36350294]
[1750439673400,5.65397028,103600.0,103590.0,0.20282216]
[1750439673617,5.75028328,103600.0,103590.0,0.21247541]
[1750439673839,5.75028328,103600.0,103590.0,0.22212857]
[1750439674082,5.54758059,103600.0,103590.0,0.2414346]
[1750439674313,5.45126842,103600.0,103590.0,0.24143367]
[1750439674531,5.44281601,103600.0,103590.0,0.23178089]
[1750439674739,5.08980871,103600.0,103590.0,0.24143367]
[1750439675167,5.06930389,103600.0,103590.0,0.24143367]
[1750439675427,5.07895612,103600.0,103590.0,0.30556367]
[1750439675647,5.06930389,103600.0,103590.0,0.30556367]
[1750439675862,5.28138436,103600.0,103590.0,0.30556367]
[1750439676106,5.31034104,103600.0,103590.0,0.23178089]
[1750439676316,5.40561089,103600.0,103590.0,0.21247504]
[1750439676539,5.39595904,103600.0,103590.0,0.21247504]
[1750439677188,5.39595904,103600.0,103590.0,0.22212792]
[1750439677613,5.30068919,103600.0,103590.0,0.22212792]
[1750439678262,5.09918594,103600.0,103590.0,0.2317807]
[1750439678474,5.10763807,103600.0,103590.0,0.2317807]
[1750439678706,5.09798594,103600.0,103590.0,0.2317807]
[1750439680017,5.08833399,103600.0,103590.0,0.2317807]
[1750439680236,5.09798584,103600.0,103590.0,0.2317807]
[1750439680454,5.09798575,103600.0,103590.0,0.2317807]
[1750439680664,5.1076377,103600.0,103590.0,0.2317807]
[1750439681085,5.4476377,103600.0,103590.0,0.2327807]
[1750439682002,5.4476377,103600.0,103590.0,0.2943807]
[1750439682419,5.45728974,103600.0,103590.0,0.2635807]
[1750439682826,5.43798575,103600.0,103590.0,0.2635807]
[1750439683086,5.44763779,103600.0,103590.0,0.2943807]
[1750439683502,5.4476377,103600.0,103590.0,0.2943807]
[1750439683924,5.45728983,103600.0,103590.0,0.2943807]
[1750439684141,5.45728983,103600.0,103590.0,0.2635807]
[1750439684605,5.65034002,103600.0,103590.0,0.2635807]
[1750439684820,5.65999317,103600.0,103590.0,0.2635807]
[1750439685043,5.65999317,103600.0,103590.0,0.25392792]
[1750439685250,5.71586047,103600.0,103590.0,0.21347542]
[1750439685689,5.71706047,103600.0,103590.0,0.22312848]
[1750439685900,5.64188946,103600.0,103590.0,0.23278136]
[1750439686550,5.64188946,103600.0,103590.0,0.22312848]
[1750439686963,5.64068946,103600.0,103590.0,0.22312848]
[1750439687172,5.63223733,103600.0,103590.0,0.22312848]
[1750439687378,5.63223733,103600.0,103590.0,0.20382226]
[1750439687594,5.74975486,103600.0,103590.0,0.22312885]
[1750439687826,5.74975486,103600.0,103590.0,0.24243489]
[1750439688049,5.62258501,103600.0,103590.0,0.24243489]
[1750439688291,5.44883882,103600.0,103590.0,0.24243423]
[1750439688527,5.65154151,103600.0,103590.0,0.24243423]
[1750439689271,5.39965167,103600.0,103590.0,0.24243423]
[1750439689490,5.39,103600.0,103590.0,0.30866423]
[1750439689711,0.34,103600.0,103590.0,0.30866423]
[1750439689929,0.34,103600.0,103590.0,0.47010423]
[1750439690569,0.029,103620.0,103610.0,0.22198516]
[1750439690812,5.05,103630.0,103620.0,0.232744]
[1750439691034,5.07288041,103630.0,103620.0,0.265644]
[1750439691252,5.06929654,103640.0,103630.0,0.20264392]
[1750439691506,5.06929654,103640.0,103630.0,0.22194232]
[1750439691507,5.09217937,103640.0,103630.0,0.22194232]
[1750439691731,5.61192081,103640.0,103630.0,0.21229326]
[1750439691947,5.07894513,103640.0,103630.0,0.22194232]
[1750439692158,5.41894513,103640.0,103630.0,0.22194232]
[1750439692368,4.90177885,103640.0,103630.0,0.22194232]
[1750439692590,5.25142741,103640.0,103630.0,0.22307232]
[1750439692796,5.27072413,103640.0,103630.0,0.22307232]
[1750439693009,5.241779,103640.0,103630.0,0.22307232]
[1750439693216,5.26107534,103640.0,103630.0,0.28647232]
[1750439693397,5.26207534,103640.0,103630.0,0.28647232]
[1750439693635,5.26207525,103640.0,103630.0,0.28647232]
[1750439694069,5.28537225,103640.0,103630.0,0.28647232]
[1750439694495,5.28537225,103640.0,103630.0,0.25597232]
[1750439695371,5.29502094,103640.0,103630.0,0.25597232]
[1750439695590,5.58326722,103640.0,103630.0,0.25597232]
[1750439695809,0.0192984,103630.0,103620.0,0.27331281]
[1750439696024,0.0192984,103630.0,103620.0,0.42444381]
[1750439696240,0.0192984,103630.0,103620.0,0.45744381]
[1750439696454,0.00964906,103630.0,103620.0,0.45744381]
[1750439696692,0.00964906,103630.0,103620.0,0.29604381]
[1750439696693,0.01929821,103630.0,103620.0,0.29604381]
[1750439696921,0.01929821,103630.0,103620.0,0.45744381]
[1750439697151,0.02029821,103630.0,103620.0,0.45744381]
[1750439697375,0.01064906,103630.0,103620.0,0.29604381]
[1750439697584,0.0202983,103630.0,103620.0,0.29604381]
[1750439698024,0.0812983,103630.0,103620.0,0.29604381]
[1750439698681,0.03094773,103630.0,103620.0,0.29604381]
[1750439699186,0.0212983,103630.0,103620.0,0.29604381]
[1750439699363,0.03094773,103630.0,103620.0,0.29604381]
[1750439699602,0.03094764,103630.0,103620.0,0.29604381]
[1750439700233,5.0005757,103630.0,103620.0,0.23161381]
[1750439700663,4.94237607,103630.0,103620.0,0.23161419]
[1750439700882,5.14502045,103630.0,103620.0,0.24126418]
[1750439701103,0.35930073,103620.0,103610.0,0.19303156]
[1750439701325,0.35930073,103620.0,103590.0,0.42558142]
[1750439701326,0.51930362,103600.0,103590.0,0.42558142]
[1750439701548,5.27073485,103600.0,103590.0,0.24367486]
[1750439701767,5.27073485,103600.0,103590.0,0.22212764]
[1750439702000,5.28038698,103600.0,103590.0,0.22212764]
[1750439702430,5.52592617,103600.0,103590.0,0.21247542]
[1750439702642,5.52712617,103600.0,103590.0,0.21247542]
[1750439702865,5.53942218,103600.0,103590.0,0.00975344]
[1750439703332,5.53942218,103600.0,103590.0,0.2124756]
[1750439703771,5.56810802,103600.0,103590.0,0.20282226]
[1750439703981,5.50596735,103600.0,103590.0,0.2124756]
[1750439704197,5.50596735,103600.0,103590.0,0.23178182]
[1750439704415,5.47436735,103600.0,103590.0,0.22712876]
[1750439704636,5.47436735,103600.0,103590.0,0.20282226]
[1750439704825,5.50586735,103600.0,103590.0,0.20382226]
[1750439705068,5.57782599,103600.0,103590.0,0.20382226]
[1750439705701,5.57782599,103600.0,103590.0,0.01075344]
[1750439705918,5.57782599,103600.0,103590.0,0.2134756]
[1750439706137,5.36292728,103600.0,103590.0,0.23278154]
[1750439706353,5.30907337,103600.0,103590.0,0.24243432]
[1750439706560,5.29942096,103600.0,103590.0,0.24243432]
[1750439707343,5.31872587,103600.0,103590.0,0.24243432]
[1750439707566,5.46078096,103600.0,103590.0,0.24243432]
[1750439707779,5.29942096,103600.0,103590.0,0.24243432]
[1750439708633,5.49247115,103600.0,103590.0,0.24243432]
[1750439708824,5.50326356,103600.0,103590.0,0.22312866]
[1750439708961,5.4936118,103600.0,103590.0,0.0011]
[1750439709179,5.61092961,103600.0,103590.0,0.0011]
[1750439709387,5.72761622,103600.0,103590.0,0.0011]
[1750439709592,5.77091622,103600.0,103590.0,0.0011]
[1750439709816,5.44564107,103590.0,103580.0,1.96660009]
[1750439710033,5.44564107,103590.0,103580.0,2.16934192]
[1750439710238,5.57261092,103590.0,103580.0,1.97625446]
[1750439710444,5.57261092,103590.0,103580.0,2.16934192]
[1750439711091,5.57261092,103590.0,103580.0,2.1819962]
[1750439711507,5.57261092,103590.0,103580.0,2.1839962]
[1750439712712,5.56295767,103590.0,103580.0,1.97160009]
[1750439712921,5.26108522,103590.0,103580.0,2.19364963]
[1750439713139,0.3496526,103590.0,103580.0,2.26820335]
[1750439713350,0.35930538,103590.0,103580.0,2.26820335]
[1750439713824,0.34,103590.0,103580.0,2.26820335]
[1750439714048,0.35930548,103590.0,103580.0,2.26820335]
[1750439714255,0.35930548,103590.0,103580.0,2.20330335]
[1750439714465,0.3496526,103590.0,103580.0,2.20330335]
[1750439714693,0.3496526,103590.0,103580.0,2.20450335]
[1750439714929,0.35930548,103590.0,103580.0,2.20330335]
[1750439715140,0.35930538,103590.0,103580.0,2.20330335]
[1750439715345,0.36895844,103590.0,103580.0,2.20330335]
[1750439715553,0.35930538,103590.0,103580.0,2.20330335]
[1750439715764,0.3496526,103590.0,103580.0,2.20330335]
[1750439715975,0.35930538,103590.0,103580.0,2.20330335]
[1750439716212,0.46441998,103590.0,103580.0,2.20330335]
[1750439716446,0.3496526,103590.0,103580.0,2.20330335]
[1750439716643,0.3496526,103590.0,103580.0,2.20450335]
[1750439716852,0.35930538,103590.0,103580.0,2.20450335]
[1750439717704,0.36895844,103590.0,103580.0,2.20450335]
[1750439717913,0.35930538,103590.0,103580.0,2.20450335]
[1750439718765,0.3496526,103590.0,103580.0,2.20450335]
[1750439718972,0.3496526,103590.0,103580.0,2.23530335]
[1750439719180,0.34,103590.0,103580.0,2.23530335]
[1750439719383,0.34965278,103590.0,103580.0,2.23530335]
[1750439719796,0.34965278,103590.0,103580.0,2.20450335]
[1750439720064,0.38841615,103590.0,103580.0,2.20330335]
[1750439720254,0.36895891,103590.0,103580.0,2.20330335]
[1750439720456,0.368959,103590.0,103580.0,2.20330335]
[1750439720689,0.370099,103590.0,103580.0,2.20330335]
[1750439721547,0.36895891,103590.0,103580.0,2.20330335]
[1750439722059,0.37861216,103590.0,103580.0,2.20330335]
[1750439722266,5.63418753,103590.0,103580.0,2.20330335]
[1750439722488,5.63532753,103590.0,103580.0,2.36462335]
[1750439722696,5.43260527,103590.0,103580.0,2.36462335]
[1750439722901,5.26108475,103590.0,103580.0,2.36462335]
[1750439723112,5.26108475,103590.0,103580.0,2.36582335]
[1750439723319,5.25143178,103590.0,103580.0,2.36582335]
[1750439723527,5.25143178,103590.0,103580.0,2.39692335]
[1750439723738,5.27073791,103590.0,103580.0,2.39692335]
[1750439723955,5.27073781,103590.0,103580.0,2.39692335]
[1750439724789,5.26108475,103590.0,103580.0,2.39692335]
[1750439725002,5.27073791,103590.0,103580.0,2.39692335]
[1750439725646,5.28039116,103590.0,103580.0,2.36462335]
[1750439726090,5.27073791,103590.0,103580.0,2.36462335]
[1750439726926,5.26108475,103590.0,103580.0,2.36462335]
[1750439727654,5.27073791,103590.0,103580.0,2.36462335]
[1750439728101,5.28039116,103590.0,103580.0,2.36462335]
[1750439728820,5.27073781,103590.0,103580.0,2.36462335]
[1750439729365,5.28039106,103590.0,103580.0,2.36462335]
[1750439729573,5.37567166,103590.0,103580.0,2.36462335]
[1750439729783,5.26222475,103590.0,103580.0,2.36462335]
[1750439729994,5.27073781,103590.0,103580.0,2.36462335]
[1750439730856,5.26108475,103590.0,103580.0,2.36462335]
[1750439731286,5.27073781,103590.0,103580.0,2.36462335]
[1750439731513,5.28039106,103590.0,103580.0,2.36462335]
[1750439731720,5.52294199,103590.0,103580.0,2.36462335]
[1750439731942,5.32135983,103590.0,103580.0,2.36462335]
[1750439732147,5.28153106,103590.0,103580.0,2.36462335]
[1750439733428,5.48425322,103590.0,103580.0,2.34531582]
[1750439733633,5.50490044,103590.0,103580.0,2.36462372]
[1750439733825,5.50490044,103590.0,103580.0,2.37427744]
[1750439734066,5.39744813,103590.0,103580.0,2.37427744]
[1750439734293,5.27187828,103590.0,103580.0,2.37427744]
[1750439734503,5.25257169,103590.0,103580.0,2.37427744]
[1750439734721,5.45415348,103590.0,103580.0,2.21295744]
[1750439734931,5.52814673,103590.0,103580.0,2.34523582]
[1750439735182,5.61377297,103590.0,103580.0,2.16468755]
[1750439735428,5.70904282,103590.0,103580.0,2.17434192]
[1750439736272,5.69938985,103590.0,103580.0,2.16468755]
[1750439736491,5.69938985,103590.0,103580.0,2.17134192]
[1750439736703,5.69938985,103590.0,103580.0,2.17134173]
[1750439736909,5.69938985,103590.0,103580.0,2.17034173]
[1750439737118,5.36715684,103590.0,103580.0,2.18964945]
[1750439737307,5.5698791,103590.0,103580.0,2.35088963]
[1750439737967,5.6022791,103590.0,103580.0,2.34123573]
[1750439738174,5.6347791,103590.0,103580.0,2.34123573]
[1750439738594,5.62512641,103590.0,103580.0,2.33158173]
[1750439738796,5.69378308,103590.0,103580.0,2.35088982]
[1750439739212,5.69378308,103590.0,103580.0,2.36054372]
[1750439740149,5.69378308,103590.0,103580.0,2.35088982]
[1750439740417,5.61547344,103590.0,103580.0,2.34123582]
[1750439741335,4.901779,103590.0,103580.0,2.26200354]
[1750439741570,0.02868584,103600.0,103590.0,0.30040885]
[1750439741810,0.01929803,103630.0,103620.0,0.22310374]
[1750439742047,4.95318754,103640.0,103630.0,0.22194232]
[1750439742247,5.5054605,103640.0,103630.0,0.1929943]
[1750439742468,5.03761796,103640.0,103630.0,0.21229326]
[1750439742682,5.04846618,103640.0,103630.0,0.22194232]
[1750439743116,5.35416618,103640.0,103630.0,0.22194232]
[1750439743321,5.46028453,103640.0,103630.0,0.2219425]
[1750439743535,4.91039043,103630.0,103620.0,0.21231356]
[1750439743752,4.95183902,103630.0,103620.0,0.39285419]
[1750439743959,4.96148836,103630.0,103620.0,0.39285419]
[1750439744196,5.05675821,103630.0,103620.0,0.39293419]
[1750439744601,5.04710887,103630.0,103620.0,0.39293419]
[1750439744809,5.05675821,103630.0,103620.0,0.39293419]
[1750439745018,5.03745972,103630.0,103620.0,0.39293419]
[1750439745224,5.04710887,103630.0,103620.0,0.39293419]
[1750439745471,4.95183893,103630.0,103620.0,0.39293419]
[1750439745674,4.92968817,103630.0,103620.0,0.23161419]
[1750439745885,4.92968817,103630.0,103620.0,0.39289419]
[1750439746085,4.92003893,103630.0,103620.0,0.39289419]
[1750439746301,4.899541,103630.0,103620.0,0.39289419]
[1750439746521,4.899541,103630.0,103620.0,0.29575419]
[1750439746747,4.899541,103630.0,103620.0,0.23161419]
[1750439746971,4.899541,103630.0,103620.0,0.23275419]
[1750439747189,4.899541,103630.0,103620.0,0.29575419]
[1750439747837,4.899541,103630.0,103620.0,0.40557397]
[1750439750782,4.899541,103630.0,103620.0,0.35749312]
[1750439750994,0.02894726,103630.0,103620.0,0.39345419]
[1750439751235,0.0385966,103630.0,103620.0,0.23161428]
[1750439751448,0.02894726,103630.0,103620.0,0.40306427]
[1750439751875,0.03859678,103630.0,103620.0,0.40306427]
[1750439752125,0.0385966,103630.0,103620.0,0.40306427]
[1750439752561,0.01929802,103630.0,103620.0,0.40306427]
[1750439752769,0.54387569,103640.0,103620.0,0.39341419]
[1750439752999,5.2600879,103640.0,103630.0,0.22194232]
[1750439753205,5.25888734,103640.0,103630.0,0.22194232]
[1750439753415,5.26853575,103640.0,103630.0,0.22194232]
[1750439753624,5.27818434,103640.0,103630.0,0.22194232]
[1750439753835,5.26853575,103640.0,103630.0,0.21229326]
[1750439754037,5.26953575,103640.0,103630.0,0.2219425]
[1750439754248,5.47216012,103640.0,103630.0,0.21229326]
[1750439754460,5.46151209,103640.0,103630.0,0.21229326]
[1750439754672,5.46451209,103640.0,103630.0,0.21229326]
[1750439754877,5.46451209,103640.0,103630.0,0.21229344]
[1750439755088,5.45486387,103640.0,103630.0,0.20264392]
[1750439755328,5.44721537,103640.0,103630.0,0.20264392]
[1750439755558,0.00964934,103630.0,103620.0,0.43735282]
[1750439755806,0.34965008,103620.0,103610.0,0.27453359]
[1750439756037,0.35929988,103620.0,103610.0,0.44700498]
[1750439756297,0.01930184,103610.0,103600.0,0.24423789]
[1750439756529,5.25884284,103610.0,103600.0,0.39328224]
[1750439757490,5.24919183,103610.0,103600.0,0.39442224]
[1750439757720,5.24919183,103610.0,103600.0,0.45662224]
[1750439758213,0.35930165,103610.0,103600.0,0.45962224]
[1750439758503,0.35930165,103610.0,103600.0,0.46362224]
[1750439758742,0.34,103610.0,103600.0,0.46362224]
[1750439761101,0.36847855,103610.0,103600.0,0.46362224]
[1750439761516,0.34,103610.0,103600.0,0.57344202]